bitfinex/quotes_SOLUSD_20240614
["timestamp","ask_amount","ask_price","bid_price","bid_amount"]
[1718344859758,0.51,148.47,148.38,2.4935]
[1718344860052,6.6828,148.46,148.37,4.10564954]
[1718344860230,6.6828,148.46,148.38,2.4935]
[1718344860419,6.5128,148.46,148.38,2.4935]
[1718344861932,6.1439,148.5,148.4,9.9728]
[1718344862234,0.2539,148.52,148.45,2.4923]
[1718344862744,0.2539,148.52,148.44,2.4925]
[1718344862946,0.2539,148.52,148.43,20.0]
[1718344863122,0.2539,148.52,148.4,18.3]
[1718344863323,0.2539,148.52,148.4,20.7932]
[1718344863527,40.6439,148.52,148.4,18.3]
[1718344863752,140.6439,148.52,148.38,2.4935]
[1718344863933,140.6439,148.52,148.38,22.4935]
[1718344864137,0.17,148.49,148.37,4.10554954]
[1718344864365,86.07,148.49,148.37,24.10554954]
[1718344864857,45.68,148.49,148.4,2.4932]
[1718344865064,0.68,148.49,148.4,2.4932]
[1718344865257,0.68,148.49,148.41,2.493]
[1718344865560,0.34,148.49,148.41,2.493]
[1718344865756,0.34,148.5,148.42,2.4928]
[1718344866266,0.34,148.5,148.41,47.493]
[1718344866464,0.34,148.5,148.41,45.0]
[1718344866759,0.34,148.5,148.4,22.4932]
[1718344867158,0.34,148.49,148.4,22.4932]
[1718344867466,0.17,148.48,148.4,22.4932]
[1718344869266,0.17,148.48,148.39,18.3]
[1718344869267,0.34,148.48,148.39,18.3]
[1718344869769,0.34,148.48,148.39,20.7933]
[1718344869944,0.34,148.48,148.39,2.4933]
[1718344872661,0.2539,148.47,148.38,47.4935]
[1718344873562,0.17,148.46,148.38,2.4935]
[1718344873753,0.2539,148.47,148.4,2.4931]
[1718344874271,85.39,148.5,148.42,2.4928]
[1718344874272,0.17,148.5,148.42,2.4928]
[1718344874454,0.51,148.5,148.41,2.493]
[1718344874657,0.51,148.5,148.4,20.0]
[1718344875061,0.51,148.5,148.41,45.0]
[1718344875265,0.51,148.5,148.4,47.4932]
[1718344875567,0.17,148.49,148.39,20.0]
[1718344875775,0.17,148.48,148.39,20.0]
[1718344875948,0.34,148.48,148.4,2.4932]
[1718344876152,0.34,148.48,148.39,22.4933]
[1718344877144,0.34,148.48,148.39,22.4934]
[1718344878554,0.34,148.48,148.4,2.4932]
[1718344878876,6.9054,148.51,148.39,20.0]
[1718344879080,47.2954,148.51,148.4,45.0]
[1718344879384,47.2954,148.51,148.4,2.4932]
[1718344879683,47.2954,148.51,148.39,65.0]
[1718344879848,47.2954,148.51,148.4,47.4932]
[1718344880051,47.2954,148.51,148.4,45.0]
[1718344880252,0.50333333,148.5,148.41,2.4929]
[1718344880455,0.50333333,148.5,148.39,22.4934]
[1718344880456,0.17,148.48,148.39,22.4934]
[1718344880671,0.34,148.48,148.39,22.4934]
[1718344880873,0.33333333,148.47,148.39,20.0]
[1718344881285,0.33333333,148.47,148.39,22.4934]
[1718344882306,0.17,148.46,148.38,18.3]
[1718344882491,7.0808,148.46,148.37,4.10554954]
[1718344882685,7.2508,148.46,148.37,4.10554954]
[1718344882883,7.2508,148.46,148.37,4.10564954]
[1718344884292,7.2508,148.46,148.37,24.10564954]
[1718344885197,7.2508,148.46,148.37,4.10564954]
[1718344885779,7.2508,148.46,148.38,2.4935]
[1718344886376,7.2508,148.46,148.37,4.10554954]
[1718344887184,7.2508,148.46,148.37,1.61194954]
[1718344887883,7.2508,148.46,148.37,4.10564954]
[1718344889711,7.2508,148.46,148.37,1.61194954]
[1718344889918,0.17,148.45,148.37,1.61194954]
[1718344890128,0.17,148.44,148.37,1.61194954]
[1718344890420,0.34,148.44,148.37,1.61194954]
[1718344892011,0.17,148.43,148.37,1.61194954]
[1718344892181,0.34,148.43,148.37,1.61194954]
[1718344893503,0.17,148.42,148.37,1.61194954]
[1718344893807,0.51,148.42,148.34,2.4942]
[1718344894210,0.51,148.42,148.32,79.13772598]
[1718344894211,0.51,148.42,148.32,37.4541]
[1718344894378,0.34,148.42,148.32,34.9596]
[1718344894584,0.17,148.41,148.32,34.9596]
[1718344894890,0.17,148.4,148.33,2.4944]
[1718344895098,0.34,148.4,148.33,2.4944]
[1718344895824,0.34,148.4,148.32,18.3]
[1718344896125,6.4462,148.39,148.31,1.61260166]
[1718344896422,6.4462,148.39,148.31,4.10730166]
[1718344897301,0.17,148.38,148.31,1.61260166]
[1718344897530,0.34,148.38,148.31,1.61260166]
[1718344897704,0.34,148.38,148.31,4.10730166]
[1718344898027,6.4462,148.39,148.32,2.4945]
[1718344898208,6.4462,148.39,148.31,4.10720166]
[1718344898825,0.17,148.38,148.31,1.61260166]
[1718344899020,0.51,148.38,148.31,1.61260166]
[1718344899335,40.9,148.38,148.31,1.61260166]
[1718344899497,0.17,148.37,148.28,2.4952]
[1718344899698,0.17,148.37,148.27,16.206]
[1718344900016,0.51,148.38,148.3,2.4948]
[1718344900209,0.51,148.38,148.29,2.495]
[1718344901128,0.17,148.38,148.28,0.34]
[1718344901331,0.34,148.38,148.28,20.17]
[1718344901510,0.34,148.38,148.29,2.495]
[1718344901933,0.34,148.38,148.3,2.4949]
[1718344902314,0.34,148.38,148.29,2.495]
[1718344903404,0.34,148.38,148.28,22.4951]
[1718344903633,0.17,148.37,148.27,2.4953]
[1718344903825,0.34,148.37,148.27,22.4953]
[1718344904016,0.34,148.36,148.27,22.4953]
[1718344904699,0.17,148.35,148.27,22.4953]
[1718344905106,0.17,148.35,148.26,20.8309431]
[1718344905303,0.34,148.35,148.26,23.3264431]
[1718344905506,0.17,148.34,148.26,23.3264431]
[1718344906236,0.17,148.34,148.27,2.4953]
[1718344906808,0.17,148.36,148.29,2.495]
[1718344907133,0.17,148.36,148.26,25.8220431]
[1718344907134,0.51,148.37,148.28,2.4952]
[1718344907506,0.51,148.37,148.27,45.0]
[1718344907732,0.17,148.36,148.27,47.4953]
[1718344908033,0.17,148.36,148.28,2.4952]
[1718344908534,0.17,148.36,148.27,47.4953]
[1718344908913,6.28,148.36,148.31,6.11]
[1718344909233,0.17,148.35,148.31,6.11]
[1718344910842,0.34,148.36,148.31,6.11]
[1718344912247,6.4462,148.39,148.29,12.4751]
[1718344912540,259.3794,148.44,148.38,8.6034]
[1718344912710,259.3794,148.44,148.41,6.11]
[1718344912916,259.3794,148.44,148.43,6.11]
[1718344913141,259.3794,148.44,148.36,5.1578]
[1718344913142,259.3794,148.44,148.42,6.11]
[1718344913327,6.2794,148.44,148.34,6.568]
[1718344913526,6.2794,148.44,148.39,6.11]
[1718344913728,6.2794,148.44,148.29,0.17]
[1718344913729,40.39,148.43,148.29,0.17]
[1718344913919,6.11,148.42,148.36,6.11]
[1718344914119,6.11,148.41,148.35,6.11]
[1718344914913,0.51,148.4,148.35,6.11]
[1718344915342,0.51,148.4,148.31,47.4947]
[1718344915646,0.51,148.4,148.35,6.11]
[1718344917242,6.11,148.39,148.31,45.0]
[1718344917547,6.62,148.4,148.34,6.11]
[1718344917941,6.2794,148.44,148.38,6.11]
[1718344918130,12.3894,148.44,148.39,6.11]
[1718344918331,6.2794,148.44,148.39,6.11]
[1718344918661,6.2794,148.44,148.4,6.11]
[1718344918831,6.2794,148.44,148.38,2.4935]
[1718344920531,6.2794,148.44,148.37,67.4937]
[1718344921459,18.31,148.52,148.37,67.4937]
[1718344921460,6.2927,148.48,148.4,2.4931]
[1718344921650,0.34,148.47,148.4,2.4931]
[1718344921833,0.34,148.47,148.39,47.4933]
[1718344922159,0.34,148.47,148.4,1.34618848]
[1718344922460,0.34,148.47,148.39,2.4933]
[1718344922636,0.34,148.47,148.38,2.4935]
[1718344922840,0.34,148.47,148.39,2.4934]
[1718344923142,0.34,148.47,148.37,65.0]
[1718344923343,0.34,148.47,148.37,67.4936]
[1718344923556,0.34,148.47,148.38,2.4935]
[1718344923951,0.34,148.47,148.37,65.0]
[1718344924139,0.17,148.45,148.34,2.4941]
[1718344924453,0.34,148.45,148.34,2.4941]
[1718344924754,0.34,148.45,148.33,18.31]
[1718344924755,0.17,148.43,148.33,18.31]
[1718344924950,0.34,148.43,148.35,2.494]
[1718344925151,0.34,148.43,148.34,2.4942]
[1718344925766,0.34,148.43,148.35,2.494]
[1718344926576,6.4767,148.44,148.37,0.17]
[1718344926779,6.9124,148.48,148.41,2.493]
[1718344926992,6.9124,148.48,148.39,18.31]
[1718344927280,6.9124,148.48,148.38,2.4934]
[1718344927455,6.9124,148.48,148.38,45.0]
[1718344927772,6.9124,148.48,148.38,47.4935]
[1718344928071,0.68,148.47,148.38,45.0]
[1718344928650,0.68,148.47,148.35,0.17]
[1718344928851,0.68,148.47,148.35,45.51]
[1718344928852,45.68,148.47,148.35,45.51]
[1718344929157,45.68,148.47,148.33,33.3577]
[1718344929158,0.17,148.45,148.33,33.3577]
[1718344929354,0.68,148.45,148.34,22.4941]
[1718344930571,0.2539,148.43,148.33,20.8043]
[1718344930777,0.68,148.42,148.32,2.4945]
[1718344931085,0.68,148.42,148.34,2.4942]
[1718344931988,0.51,148.42,148.34,2.4942]
[1718344932166,0.2539,148.43,148.38,2.4934]
[1718344932576,0.2539,148.43,148.36,18.31]
[1718344933293,0.2539,148.43,148.33,18.31]
[1718344933515,0.2539,148.43,148.34,67.4942]
[1718344935575,0.68,148.42,148.33,2.4943]
[1718344935775,0.68,148.42,148.32,47.4945]
[1718344936074,6.0782,148.41,148.29,15.7787]
[1718344936280,0.68,148.4,148.31,2.4947]
[1718344936883,0.68,148.4,148.3,2.4948]
[1718344937095,0.68,148.4,148.29,15.7787]
[1718344937296,45.68,148.4,148.29,15.7787]
[1718344937878,45.68,148.4,148.29,18.2737]
[1718344938176,0.17,148.38,148.28,2.4952]
[1718344938381,0.17,148.36,148.28,2.4951]
[1718344938685,0.34,148.36,148.29,2.495]
[1718344938899,0.34,148.36,148.28,2.4952]
[1718344939277,0.17,148.36,148.29,2.495]
[1718344939474,6.1373,148.37,148.27,2.4953]
[1718344939674,0.68,148.36,148.27,2.4953]
[1718344940603,6.1373,148.37,148.3,2.4948]
[1718344942413,6.1373,148.37,148.29,22.495]
[1718344942780,6.1373,148.37,148.3,4.9898]
[1718344942974,6.1373,148.37,148.32,2.4945]
[1718344943192,6.1373,148.37,148.29,20.0]
[1718344943405,6.1373,148.37,148.29,22.495]
[1718344943590,6.1373,148.37,148.3,65.0]
[1718344943911,6.1373,148.37,148.3,45.0]
[1718344944080,6.1373,148.37,148.29,47.495]
[1718344944280,6.1373,148.37,148.3,22.4949]
[1718344946206,6.1373,148.37,148.3,22.4948]
[1718344946613,6.1373,148.37,148.31,2.4947]
[1718344946797,6.1373,148.37,148.3,22.4948]
[1718344946988,6.1373,148.37,148.31,2.4947]
[1718344948011,6.1373,148.37,148.3,22.4948]
[1718344949213,6.1373,148.37,148.31,2.4947]
[1718344949709,6.1373,148.37,148.3,22.4948]
[1718344950308,6.1373,148.37,148.29,45.0]
[1718344950624,6.1373,148.37,148.29,2.495]
[1718344950906,6.1373,148.37,148.27,44.19302384]
[1718344950907,0.17,148.36,148.27,2.4953]
[1718344951115,0.68,148.36,148.27,2.4953]
[1718344952189,0.68,148.36,148.27,67.4953]
[1718344952486,41.16,148.36,148.27,2.4953]
[1718344952984,41.16,148.36,148.26,19.1409431]
[1718344953189,41.16,148.36,148.28,2.4952]
[1718344953778,41.16,148.36,148.26,21.6364431]
[1718344953980,41.16,148.36,148.26,0.8309431]
[1718344954186,41.16,148.36,148.26,68.3264431]
[1718344954689,0.17,148.34,148.26,3.3264431]
[1718344954884,0.68,148.34,148.26,3.3264431]
[1718344956709,0.2539,148.35,148.28,2.4951]
[1718344957096,0.2539,148.35,148.3,2.4948]
[1718344957300,0.2539,148.35,148.29,2.495]
[1718344957616,0.2539,148.35,148.29,47.495]
[1718344959004,0.2539,148.35,148.29,45.0]
[1718344960409,0.2539,148.35,148.28,20.0]
[1718344960604,0.17,148.34,148.27,2.4953]
[1718344960812,0.2539,148.35,148.26,23.3264431]
[1718344961006,0.2539,148.35,148.27,2.4954]
[1718344962194,0.2539,148.35,148.27,47.4954]
[1718344963015,0.17,148.34,148.26,20.8309431]
[1718344963218,0.17,148.34,148.27,2.4953]
[1718344963402,0.2539,148.35,148.28,2.4951]
[1718344963600,0.2539,148.35,148.28,47.4951]
[1718344963806,0.2539,148.35,148.29,2.4951]
[1718344963997,0.2539,148.35,148.28,45.0]
[1718344964304,0.2539,148.35,148.31,2.4946]
[1718344964510,6.1373,148.37,148.3,4.9898]
[1718344964705,6.1373,148.37,148.31,47.4946]
[1718344965034,6.1373,148.37,148.34,6.11]
[1718344967025,6.1373,148.37,148.31,2.4946]
[1718344967214,6.1373,148.37,148.31,22.4946]
[1718344967405,6.1373,148.37,148.32,45.0]
[1718344967825,6.1373,148.37,148.31,22.4946]
[1718344968139,6.1373,148.37,148.3,22.4948]
[1718344968305,6.1373,148.37,148.31,45.0]
[1718344968720,6.1373,148.37,148.3,22.4948]
[1718344968925,6.1373,148.37,148.29,20.825]
[1718344969125,6.1373,148.37,148.3,45.0]
[1718344969314,6.1373,148.37,148.29,20.825]
[1718344970625,0.2539,148.35,148.28,2.4952]
[1718344972230,0.2539,148.35,148.27,65.0]
[1718344972414,0.2539,148.35,148.26,19.1609431]
[1718344972605,0.2539,148.35,148.27,2.4953]
[1718344973731,0.2539,148.35,148.27,47.4953]
[1718344977127,0.68,148.34,148.26,19.1609431]
[1718344977443,0.68,148.34,148.26,0.8309431]
[1718344980725,6.247,148.33,148.26,0.8309431]
[1718344980935,0.34,148.32,148.26,0.8309431]
[1718344988142,6.4488,148.38,148.35,2.494]
[1718344988346,6.4488,148.38,148.33,2.4943]
[1718344988643,0.2539,148.4,148.33,2.4943]
[1718344988840,0.2539,148.4,148.37,6.11]
[1718344989837,6.3639,148.4,148.32,45.0]
[1718344990044,6.3639,148.4,148.31,22.4946]
[1718344990045,6.3639,148.4,148.34,6.11]
[1718344990622,0.51,148.39,148.34,6.11]
[1718344991640,0.2539,148.4,148.29,0.17]
[1718344991845,0.2539,148.4,148.36,6.11]
[1718344993524,0.2539,148.4,148.37,6.11]
[1718344993717,0.2539,148.4,148.33,8.6043]
[1718344993718,6.5842,148.41,148.39,6.11]
[1718344993919,6.5842,148.41,148.4,6.11]
[1718344994324,6.5842,148.41,148.39,6.11]
[1718344994924,6.5842,148.41,148.33,26.9344]
[1718344995143,6.5842,148.41,148.37,6.11]
[1718344996841,0.17,148.4,148.33,24.44]
[1718344997035,0.68,148.4,148.35,6.11]
[1718344997222,6.79,148.4,148.29,43.37869199]
[1718344997430,6.79,148.4,148.34,6.11]
[1718344997431,0.2539,148.39,148.34,6.11]
[1718344997834,6.3639,148.39,148.3,22.4949]
[1718344998053,6.3639,148.39,148.34,6.11]
[1718344998424,0.2539,148.39,148.34,6.11]
[1718344998829,0.2539,148.39,148.3,22.4949]
[1718344999022,0.2539,148.39,148.31,45.0]
[1718344999250,0.2539,148.39,148.32,20.0]
[1718344999748,0.51,148.38,148.32,20.0]
[1718344999945,0.51,148.38,148.3,2.4948]
[1718344999946,0.51,148.38,148.3,22.4948]
[1718345001152,0.51,148.38,148.3,20.0]
[1718345001831,0.17,148.37,148.3,20.0]
[1718345002030,0.17,148.37,148.28,20.0]
[1718345002238,0.33371003,148.36,148.28,20.0]
[1718345002653,0.33371003,148.36,148.28,22.4952]
[1718345003246,0.33371003,148.36,148.28,20.0]
[1718345003851,6.4919,148.35,148.26,0.8309431]
[1718345004073,6.3219,148.35,148.27,8.09451097]
[1718345004361,6.3219,148.35,148.29,2.4951]
[1718345005039,6.3219,148.35,148.26,5.8220431]
[1718345005234,6.3219,148.35,148.27,45.0]
[1718345005439,6.3219,148.35,148.26,48.3263431]
[1718345005871,6.3219,148.35,148.27,20.0]
[1718345006162,0.17,148.34,148.27,20.0]
[1718345006378,0.51,148.34,148.27,20.0]
[1718345006737,0.2539,148.33,148.27,20.0]
[1718345007938,0.2539,148.33,148.26,0.8309431]
[1718345009350,0.2539,148.33,148.26,20.8309431]
[1718345009750,0.2539,148.33,148.26,0.8309431]
[1718345010152,0.2539,148.33,148.26,20.8309431]
[1718345010561,0.51,148.32,148.26,20.8309431]
[1718345010754,0.51,148.32,148.26,0.8309431]
[1718345012766,0.17,148.32,148.26,0.8309431]
[1718345012964,0.2539,148.33,148.26,0.8309431]
[1718345014560,0.17,148.32,148.26,0.8309431]
[1718345014761,0.2539,148.33,148.26,0.8309431]
[1718345015154,0.2539,148.33,148.26,20.8309431]
[1718345015450,0.2539,148.33,148.27,47.4953]
[1718345015762,0.2539,148.33,148.28,20.0]
[1718345017269,0.2539,148.33,148.27,20.0]
[1718345019161,0.2539,148.33,148.26,19.1609431]
[1718345019374,0.2539,148.33,148.26,0.8309431]
[1718345019973,0.34,148.32,148.26,0.8309431]
[1718345020153,0.17,148.32,148.26,0.8309431]
[1718345020969,0.17,148.32,148.29,6.11]
[1718345021368,0.34,148.32,148.26,0.8309431]
[1718345021676,0.34,148.32,148.28,6.11]
[1718345023988,0.34,148.32,148.26,0.8309431]
[1718345024158,0.34,148.32,148.28,6.11]
[1718345024558,0.34,148.32,148.26,0.8309431]
[1718345024559,0.17,148.3,148.26,0.8309431]
[1718345024759,0.34,148.3,148.27,6.11]
[1718345027058,0.34,148.3,148.26,6.9409431]
[1718345028877,6.7171,148.3,148.26,0.8309431]
[1718345029055,6.7171,148.3,148.26,6.9409431]
[1718345029573,0.17,148.29,148.26,0.8309431]
[1718345029776,0.17,148.28,148.26,0.8309431]
[1718345030272,6.3771,148.3,148.26,6.9409431]
[1718345030477,6.5471,148.3,148.26,6.9409431]
[1718345030671,0.17,148.29,148.26,6.9409431]
[1718345033768,0.17,148.29,148.26,0.8309431]
[1718345034074,6.11,148.28,148.26,0.8309431]
[1718345034606,0.17,148.27,148.26,0.8309431]
[1718345034982,6.79,148.27,148.26,0.8309431]
[1718345035181,7.0439,148.27,148.26,0.8309431]
[1718345035491,52.0439,148.27,148.26,0.8309431]
[1718345037084,92.5239,148.27,148.26,0.8309431]
[1718345037579,112.5239,148.27,148.26,0.8309431]
[1718345040589,106.4139,148.27,148.26,0.8309431]
[1718345040802,112.5239,148.27,148.26,0.8309431]
[1718345042665,112.5239,148.27,148.16,15.7756]
[1718345042895,6.11,148.23,148.16,15.7756]
[1718345043087,0.68,148.22,148.17,6.11]
[1718345043293,41.16,148.22,148.15,1.61434325]
[1718345043468,0.17,148.2,148.15,7.72434325]
[1718345043672,0.68,148.2,148.15,6.11]
[1718345043873,0.68,148.2,148.13,6.2615]
[1718345044090,0.68,148.2,148.15,6.11]
[1718345044879,6.79,148.2,148.15,6.11]
[1718345045193,0.17,148.18,148.12,17.1986431]
[1718345045390,0.34,148.18,148.13,6.11]
[1718345045567,0.34,148.18,148.12,17.1986431]
[1718345045771,6.45,148.18,148.12,0.8309431]
[1718345045981,0.34,148.17,148.12,0.8309431]
[1718345046178,0.34,148.16,148.12,0.8309431]
[1718345046804,0.34,148.15,148.12,0.8309431]
[1718345046990,0.17,148.15,148.12,0.8309431]
[1718345047318,0.34,148.16,148.12,0.8309431]
[1718345047484,0.17,148.15,148.12,0.8309431]
[1718345048891,0.34,148.15,148.12,0.8309431]
[1718345049093,0.17,148.14,148.12,0.8309431]
[1718345049589,0.34,148.14,148.12,0.8309431]
[1718345050899,200.0,148.18,148.12,0.8309431]
[1718345050900,106.6047,148.23,148.13,6.11]
[1718345051105,6.11,148.2,148.15,6.11]
[1718345052097,6.11,148.22,148.13,2.4977]
[1718345052301,6.6047,148.23,148.19,6.11]
[1718345052508,6.11,148.21,148.14,15.3401]
[1718345052719,6.6047,148.23,148.12,0.8309431]
[1718345053020,6.11,148.18,148.12,0.8309431]
[1718345053193,6.11,148.17,148.12,0.8309431]
[1718345053390,6.11,148.15,148.12,0.8309431]
[1718345053600,0.51,148.14,148.12,0.8309431]
[1718345054510,0.17,148.14,148.12,0.8309431]
[1718345054709,6.28,148.16,148.12,0.8309431]
[1718345055007,0.34,148.15,148.12,0.8309431]
[1718345057403,0.17,148.15,148.12,0.8309431]
[1718345057605,0.34,148.16,148.12,0.8309431]
[1718345058194,0.17,148.15,148.12,0.8309431]
[1718345061922,0.34,148.15,148.12,0.8309431]
[1718345062140,0.34,148.14,148.12,0.8309431]
[1718345062799,0.17,148.14,148.12,0.8309431]
[1718345063022,0.17,148.15,148.12,0.8309431]
[1718345063226,0.68,148.16,148.12,0.8309431]
[1718345063509,0.51,148.16,148.12,0.8309431]
[1718345065913,6.3277,148.2,148.12,0.8309431]
[1718345066114,6.3277,148.2,148.12,16.2966431]
[1718345066315,46.8077,148.2,148.12,16.2966431]
[1718345066530,46.8077,148.2,148.12,0.8309431]
[1718345067446,86.16,148.19,148.12,0.8309431]
[1718345070957,0.17,148.17,148.12,0.8309431]
[1718345071140,0.68,148.17,148.12,0.8309431]
[1718345073341,40.48,148.16,148.12,0.8309431]
[1718345073543,65.68,148.15,148.12,0.8309431]
[1718345074635,0.17,148.13,148.12,0.8309431]
[1718345074835,0.68,148.13,148.12,0.8309431]
[1718345078645,0.17,148.13,148.12,0.8309431]
[1718345078835,0.17,148.17,148.12,0.8309431]
[1718345079038,0.17,148.15,148.12,0.8309431]
[1718345079243,0.51,148.15,148.12,0.8309431]
[1718345079456,6.64,148.15,148.12,0.8309431]
[1718345079673,0.17,148.14,148.12,0.8309431]
[1718345079955,0.17,148.13,148.12,0.8309431]
[1718345080137,6.3,148.13,148.12,0.8309431]
[1718345080336,6.81,148.13,148.12,0.8309431]
[1718345081449,51.81,148.13,148.12,0.8309431]
[1718345081776,6.81,148.13,148.12,0.8309431]
[1718345084051,47.29,148.13,148.12,0.8309431]
[1718345084360,40.65,148.11,148.02,14.25826107]
[1718345084572,6.13,148.08,148.02,14.25826107]
[1718345084755,0.17,148.09,148.03,6.13]
[1718345084941,6.3,148.09,148.03,6.13]
[1718345085142,0.17,148.07,147.98,47.0496]
[1718345085361,0.34,148.07,147.98,47.0496]
[1718345085562,0.34,148.06,147.98,47.0496]
[1718345085771,0.17,148.06,148.02,6.13]
[1718345087070,0.34,148.07,148.02,6.13]
[1718345087362,0.34,148.08,148.03,6.13]
[1718345087566,0.17,148.07,147.98,47.0496]
[1718345087735,0.51,148.07,148.03,6.13]
[1718345088438,0.51,148.07,148.02,6.13]
[1718345088669,0.17,148.06,148.02,6.13]
[1718345089077,0.17,148.06,147.98,47.0496]
[1718345089268,0.17,148.06,147.99,20.0]
[1718345089564,0.17,148.05,147.98,22.5296]
[1718345089771,6.64,148.05,147.98,22.5296]
[1718345089973,6.64,148.05,148.0,6.13]
[1718345090281,0.51,148.05,147.98,47.0496]
[1718345091148,0.51,148.05,147.97,0.8309431]
[1718345091149,40.99,148.05,147.97,0.8309431]
[1718345091348,6.3,148.03,147.97,6.9609431]
[1718345091553,0.51,148.02,147.97,6.9609431]
[1718345092586,0.34,148.02,147.97,6.9609431]
[1718345092752,40.48,148.08,148.01,6.13]
[1718345092947,6.2223,148.13,148.05,6.13]
[1718345093156,6.13,148.11,148.05,6.13]
[1718345093358,6.13,148.11,148.06,6.13]
[1718345093557,6.2223,148.13,148.04,2.4992]
[1718345093773,6.3839,148.14,148.08,6.13]
[1718345094774,46.78,148.13,148.07,6.13]
[1718345095082,0.17,148.11,148.01,20.8997]
[1718345095256,0.17,148.11,148.02,20.0]
[1718345097076,0.17,148.11,148.02,22.4996]
[1718345099163,0.17,148.11,148.02,20.0]
[1718345099559,0.17,148.11,148.0,16.0443]
[1718345099560,0.17,148.09,148.0,16.0443]
[1718345099763,0.68,148.09,148.0,16.0443]
[1718345100361,45.68,148.09,148.0,16.0443]
[1718345100679,0.68,148.09,148.01,2.4997]
[1718345100895,0.17,148.09,148.02,2.4996]
[1718345101058,0.68,148.1,148.01,2.4997]
[1718345101467,0.68,148.1,148.01,20.0]
[1718345102772,0.68,148.1,148.02,2.4996]
[1718345103168,0.68,148.1,148.01,22.4997]
[1718345104296,0.68,148.1,148.01,20.0]
[1718345105588,41.16,148.1,148.01,20.0]
[1718345106889,0.17,148.08,148.01,20.0]
[1718345107088,0.68,148.08,148.01,20.0]
[1718345107662,0.9339,148.08,148.0,16.0443]
[1718345109697,0.17,148.06,147.97,0.8309431]
[1718345109873,0.68,148.06,147.97,3.3313431]
[1718345110059,86.16,148.06,147.97,0.8309431]
[1718345110463,0.17,148.04,147.97,0.8309431]
[1718345110715,0.68,148.04,147.97,0.8309431]
[1718345115098,0.68,148.04,147.99,6.14]
[1718345118002,0.68,148.04,147.97,0.8309431]
[1718345118212,0.68,148.04,147.99,6.14]
[1718345118379,0.68,148.04,148.0,6.14]
[1718345119089,0.51,148.04,148.0,6.14]
[1718345119304,20.0,148.07,148.02,6.14]
[1718345119487,20.2539,148.08,148.03,6.14]
[1718345119995,0.2539,148.08,148.03,6.14]
[1718345120194,0.2539,148.08,148.04,6.14]
[1718345120492,0.33333334,148.07,148.03,6.14]
[1718345121523,0.34,148.06,148.03,6.14]
[1718345121816,0.17,148.06,148.03,6.14]
[1718345122019,0.34,148.07,148.03,6.14]
[1718345122517,0.2539,148.08,148.03,6.14]
[1718345122724,0.2539,148.11,148.07,6.14]
[1718345123415,6.14,148.1,148.04,6.14]
[1718345124105,0.51,148.09,148.05,6.14]
[1718345124503,40.99,148.09,148.01,15.3421]